Cogmind - Beta 15 @@@ ROGUE MODE // 2025.05.13 @ 11:35:55 Player: Henry Result: Destroyed by G-47 Trooper with Particle Gun Performance ------------- Evolutions (1) 500 Regions Visited (2) 400 Robots Destroyed (31) 155 Value Destroyed (611) 611 Prototype IDs (0) 0 Alien Tech Used (0) 0 Bonus (0) 0 TOTAL SCORE: 1666 Bonus ------- None Cogmind --------- Core Integrity 0/400 Matter 300/300 Energy 259/265 System Corruption 0% Temperature Warm (126) Movement Walking (190) Ox1 Location -9/Materials Parts ------- > --- POWER (1) -------- Improved Ion Engine > --- PROPULSION (3) --- Aluminum Leg Aluminum Leg > --- UTILITY (3) ------ Heat Sink Large Storage Unit Visual Processing Unit > --- WEAPON (2) ------- Heavy Particle Cannon Heavy Particle Cannon > --- INVENTORY (15) --- Light Ion Engine Aluminum Leg Small Storage Unit Terrain Scan Processor Light Armor Plating Insulated Plating Small Laser Small Laser Light Assault Rifle Mini Grenade Launcher Mining Laser Peak State ------------ > --- POWER ------------ Improved Ion Engine > --- PROPULSION ------- Aluminum Leg Aluminum Leg Aluminum Leg > --- UTILITY ---------- Heat Sink Large Storage Unit Visual Processing Unit > --- WEAPON ----------- Heavy Particle Cannon Heavy Particle Cannon > --- INVENTORY -------- Light Ion Engine Aluminum Leg Small Storage Unit Terrain Scan Processor Light Armor Plating Insulated Plating Small Laser Small Laser Light Assault Rifle Mini Grenade Launcher Mining Laser [Rating: 16] Favorites ----------- Power Ion Engine Engine Ion Engine Propulsion Aluminum Leg Leg Aluminum Leg Wheel Wheel Utility Visual Processing Unit Device Improved Terrain Scanner Storage Large Storage Unit Processor Visual Processing Unit Weapon Small Laser Energy Gun Small Laser Energy Cannon Heavy Particle Cannon Ballistic Gun Assault Rifle Launcher Mini Grenade Launcher Build | -11 -10 -9 ------- Run | Yrd Mat Mat Slots Evolved 2 | . . 2 Power . | . . . Propulsion 1 | . . 1 Utility 1 | . . 1 Weapon . | . . . Parts Attached 26 | 6 1 19 Power 4 | 1 . 3 Engine 4 | 1 . 3 Core . | . . . Reactor . | . . . Propulsion 8 | 2 . 6 Treads . | . . . Leg 4 | . . 4 Wheel 4 | 2 . 2 Hover . | . . . Flight . | . . . Utility 5 | 1 1 3 Device 2 | . . 2 Storage 2 | 1 . 1 Processor 1 | . 1 . Hackware . | . . . Protection . | . . . Artifact . | . . . Weapon 9 | 2 . 7 Energy Gun 2 | 1 . 1 Energy Cannon 2 | . . 2 Ballistic Gun 4 | 1 . 3 Ballistic Cannon . | . . . Launcher 1 | . . 1 Special Weapon . | . . . Impact Weapon . | . . . Slashing Weapon . | . . . Piercing Weapon . | . . . Special Melee Weapon . | . . . Unidentified Prototypes . | . . . Parts Lost 8 | . . 8 Power 2 | . . 2 Propulsion 3 | . . 3 Utility 1 | . . 1 Weapon 2 | . . 2 Highest Loss Streak 6 | . . 6 To Critical Strikes . | . . . Average Backups 7 | 3 8 8 Power . | . 1 . Propulsion 2 | 2 4 1 Utility 1 | . 1 2 Weapon 3 | . 2 4 Tool/Special . | . . . Unused Backups 4 | . . 4 Power . | . . . Propulsion . | . . . Utility 3 | . . 3 Weapon 1 | . . 1 Tool/Special . | . . . Average Slot Usage (%) 95 | . 92 96 Engine 10 | . 14 9 Leg 14 | . . 16 Wheel 16 | . 28 15 Device 8 | . . 9 Storage 11 | . 14 11 Processor 10 | . 7 11 Energy Gun 5 | . 14 4 Energy Cannon 4 | . . 4 Ballistic Gun 12 | . 14 11 Peak Build Rating 16 | 7 9 16 Average Rating 10 | 5 8 12 On Entrance 5 | . 7 9 Naked Turns . | . . . Heaviest Build 40 | 13 13 40 Greatest Support 42 | 26 26 42 Greatest Overweight (x) 1 | . . 1 Average Overweight (x) . | . . . Largest Inventory Capacity 15 | 8 8 15 Average Capacity 12 | 7 8 14 Most Carried 12 | 8 8 12 Average Carried 7 | 4 8 8 Final Capacity 15 | 8 8 15 Final Carried 11 | 8 8 11 Class Distribution -------------------- 58% | Scavenger-Mutant 41% | Mutant Dominant Class ---------------- Mutant | -10/Materials Scavenger-Mutant | -9/Materials Resources | -11 -10 -9 ----------- Run | Yrd Mat Mat Matter Collected 756 | 311 . 445 Remotely . | . . . Salvage Created 868 | 130 17 721 Parts 65 | 6 2 57 Haulers Intercepted . | . . . Recyclers Shooed 3 | . . 3 Parts Field Recycled . | . . . Retrieved Matter . | . . . Parts Self-Destructed . | . . . Prevented . | . . . Kills | -11 -10 -9 ------- Run | Yrd Mat Mat Combat Hostiles Destroyed 22 | . . 22 Guns 15 | . . 15 Cannons 1 | . . 1 AOE 6 | . . 6 Classes Destroyed 8 | 2 1 5 Builder 1 | . . 1 Tunneler 3 | 3 . . Recycler 2 | 1 . 1 Mechanic 1 | . . 1 Watcher 2 | . 1 1 Swarmer 11 | . . 11 Grunt 7 | . . 7 Sentry 4 | . . 4 Best Kill Streak 10 | 2 1 10 Combat Bots Only 8 | . . 8 Max Kills in Single Turn 4 | 1 1 4 Gunslinging . | . . . Exploded 4 | . . 4 Melee . | . . . Uniques/NPCs Destroyed . | . . . Combat | -11 -10 -9 -------- Run | Yrd Mat Mat Hostile Shots Fired 143 | . 10 133 Missed 33 | . 5 28 Hits 110 | . 5 105 Projectile 110 | . 5 105 Critical Strikes 1 | . . 1 Damage Taken 1228 | . 43 1185 Core 424 | . 16 408 Absorbed by Shields . | . . . Core Remaining (%) 96 | 100 93 . Volleys Fired 87 | 17 4 66 Largest 2 | 2 2 2 Hottest 150 | 60 60 150 Shots Fired 172 | 34 8 130 Gun 162 | 34 8 120 Cannon 8 | . . 8 Launcher 2 | . . 2 Special . | . . . Kinetic 108 | 17 4 87 Thermal 62 | 17 4 41 Explosive 2 | . . 2 Electromagnetic . | . . . Robot Hit Streak 10 | 5 2 10 Robot Miss Streak 7 | 3 3 7 Penetration Max . | . . . Secondary Targets 4 | . . 4 Max Gunslinging Chain 1 | . . 1 Shots Hit Robots 102 | 19 3 80 Core Hits 47 | 5 2 40 Critical Kills 1 | . . 1 Critical Parts Destroyed 1 | . . 1 Critical Strikes 2 | . . 2 Destroy 2 | . . 2 Melee Attacks . | . . . Impact . | . . . Slashing . | . . . Piercing . | . . . Sneak Attacks . | . . . Combat Hostiles . | . . . Follow-up Attacks . | . . . Damage Inflicted 1723 | 223 31 1469 Guns 1244 | 223 31 990 Cannons 100 | . . 100 Explosions 379 | . . 379 Melee . | . . . Ramming . | . . . Kinetic 822 | 113 . 709 Thermal 522 | 110 31 381 Explosive 379 | . . 379 Electromagnetic . | . . . Impact . | . . . Slashing . | . . . Piercing . | . . . Highest Corruption . | . . . Average Corruption . | . . . Corruption Purged . | . . . Corruption Blocked . | . . . Overload Shots . | . . . Overflow Damage 83 | . . 83 Projectiles . | . . . Explosions 83 | . . 83 Melee . | . . . Knockbacks . | . . . Impact . | . . . Kinetic . | . . . Secondary . | . . . Self-Inflicted Damage 47 | . . 47 Shots 2 | . . 2 Rammed . | . . . Targets Rammed . | . . . Kicked . | . . . Crushed . | . . . Highest Temperature 117 | 20 . 117 Average Temperature 32 | 20 . 36 Received Heat Transfer 381 | . . 381 Siege Activations . | . . . Martial Activations . | . . . Shielding Activations . | . . . Robots Disrupted . | . . . Combat Hostiles . | . . . Robots Corrupted . | . . . Combat Hostiles . | . . . Parts Fried . | . . . Impact Corruptions . | . . . Robots Melted . | . . . Combat Hostiles . | . . . Parts Melted . | . . . Heat Transferred 1098 | 250 75 773 Parts Sabotaged . | . . . Parts Stolen . | . . . Parts Stripped . | . . . Power Chain Reactions . | . . . Alert | -11 -10 -9 ------- Run | Yrd Mat Mat Maximum Alert Level . | . . . Low Security (%) 100 | 100 100 100 Level 1 . | . . . Level 2 . | . . . Level 3 . | . . . Level 4 . | . . . Level 5 . | . . . High Security . | . . . Max Security . | . . . Peak Influence 194 | 5 7 194 Initial . | . . . Average 69 | 1 1 94 Influence Increases 597 | 20 7 570 Destroy 0b10 Robot/C 440 | . . 440 Destroy 0b10 Robot/NC 45 | 20 5 20 Destroy Leader 94 | . 2 92 Destroy Structure 18 | . . 18 Influence Decreases 449 | 20 7 422 Time Decay 228 | 20 7 201 Lost Part 50 | . . 50 Purge Threat 171 | . . 171 Squads Dispatched 2 | . . 2 Investigation . | . . . Extermination . | . . . Reinforcement 2 | . . 2 Assault . | . . . Garrison . | . . . Intercept . | . . . Searches Triggered . | . . . Construction Impeded . | . . . Haulers Reinforced . | . . . Active Scanning Responses . | . . . Cargo Convoy Interrupts . | . . . Stealth | -11 -10 -9 --------- Run | Yrd Mat Mat Distress Signals . | . . . Communications Jammed . | . . . Distress Signals . | . . . Times Spotted 37 | . 4 33 Peak Tracking Total 8 | . 3 8 Tactical Retreats . | . . . Traps | -11 -10 -9 ------- Run | Yrd Mat Mat Traps Triggered 1 | . . 1 Indirectly . | . . . Trap Hack Attempts . | . . . Triggered . | . . . Disarmed . | . . . Reprogrammed . | . . . Reused . | . . . Traps Extracted . | . . . Installed . | . . . Triggered . | . . . Machines | -11 -10 -9 ---------- Run | Yrd Mat Mat Machines Disabled . | . . . Max in Single Turn . | . . . Machines Repaired . | . . . Machines Dismantled . | . . . Machines Sabotaged . | . . . Overloaded Fab Kills . | . . . Hacking | -11 -10 -9 --------- Run | Yrd Mat Mat Machines Accessed 3 | . . 3 Terminals 3 | . . 3 Fabricators . | . . . Repair Stations . | . . . Recycling Units . | . . . Scanalyzers . | . . . Garrison Access . | . . . Total Hacks 5 | . . 5 Successful 2 | . . 2 Failed 3 | . . 3 Catastrophic 2 | . . 2 Database Lockouts . | . . . Manual 5 | . . 5 Terminals 5 | . . 5 Fabricators . | . . . Repair Stations . | . . . Recycling Units . | . . . Scanalyzers . | . . . Garrison Access . | . . . Terminal Hacks 2 | . . 2 Unreport Threat 2 | . . 2 Fabricator Hacks . | . . . Repair Station Hacks . | . . . Recycling Unit Hacks . | . . . Scanalyzer . | . . . Garrison Access Hacks . | . . . Unauthorized Hacks . | . . . Terminals . | . . . Fabricators . | . . . Repair Stations . | . . . Recycling Units . | . . . Scanalyzers . | . . . Garrison Access . | . . . Data Cores Recovered . | . . . Used . | . . . Hacking Detections . | . . . Full Trace Events . | . . . Feedback Events . | . . . Feedback Blocked . | . . . Robot Schematics Acquired . | . . . Robots Built . | . . . Authchips . | . . . Time . | . . . Total Robot Build Rating . | . . . Part Schematics Acquired . | . . . Parts Built . | . . . Authchips . | . . . Time . | . . . Total Part Build Rating . | . . . Parts Repaired . | . . . Time . | . . . Parts Recycled . | . . . Recycled Matter . | . . . Retrieved Matter . | . . . Retrieved Components . | . . . Parts Scanalyzed . | . . . Part Schematics Acquired . | . . . Parts Damaged . | . . . Bothacking | -11 -10 -9 ------------ Run | Yrd Mat Mat Used RIF Installer . | . . . Robots Hacked . | . . . Non-combat . | . . . Combat . | . . . Robot Hacks Applied . | . . . Relay Couplers Released . | . . . Fabnet Peak Effective % . | . . . Robots Rewired . | . . . Allies Hacked . | . . . Hacks Repelled . | . . . Allies | -11 -10 -9 -------- Run | Yrd Mat Mat Total Allies . | . . . Largest Group . | . . . Highest-Rated Group . | . . . Highest-Rated Ally . | . . . Total Orders . | . . . Ally Attacks . | . . . Total Damage . | . . . Kills . | . . . Allies Corrupted . | . . . Allies Melted . | . . . Intel | -11 -10 -9 ------- Run | Yrd Mat Mat Active Infowar (turns) 632 | . 49 583 Optics 632 | . 49 583 Terrain 274 | . . 274 Robot Analysis Total . | . . . Derelict Logs Recovered . | . . . Drone Launches . | . . . Drone Recoveries . | . . . Exploration | -11 -10 -9 ------------- Run | Yrd Mat Mat Turns Passed 791 | 130 78 583 Spaces Moved 443 | 69 72 302 Core 3 | 3 . . Treads . | . . . Legs 131 | . . 131 Wheels 309 | 66 72 171 Hover . | . . . Flight . | . . . Fastest Speed 50 | 50 90 86 Average Speed 106 | 89 90 114 Slowest Speed 190 | 100 90 190 Overloaded Moves . | . . . Propulsion Burnouts . | . . . Robots Hopped . | . . . Potential Cave-ins . | . . . Cave-ins Triggered . | . . . Exploration Rate (%) 22 | 3 21 42 Regions Visited 2 Branch Regions . Pre-discovered Areas . | . . . Known Exits Taken . | . . . Unknown Exits Taken 2 | 1 1 . Scrap Searched . | . . . Spaces Dug . | . . . Terrain Destroyed 15 | . . 15 Melee . | . . . Projectile 4 | . . 4 AOE 11 | . . 11 Terrain Rammed . | . . . Walls Destroyed . | . . . Machines Disabled . | . . . Actions | -11 -10 -9 --------- Run | Yrd Mat Mat Total 586 | 99 76 411 Wait 9 | . . 9 Move 441 | 68 71 302 Hop . | . . . Pick Up 13 | 8 . 5 Fast Attach 14 | 6 1 7 Attach 10 | . . 10 Detach 5 | . . 5 Swap 6 | . . 6 Drop 1 | . . 1 Fire 87 | 17 4 66 Melee . | . . . Ram . | . . . Kick . | . . . Crush . | . . . Escape Stasis . | . . . Rewire . | . . . Trap . | . . . Miscellaneous . | . . . Route ------- -11/Scrapyard -10/Materials -9/Materials History --------- Turn | Location | Event 14 | -11/Scrapyard | Discovered new exit (range 16) 131 | -11/Scrapyard | Entered Materials 194 | -10/Materials | Discovered new exit (range 18) 209 | -10/Materials | Entered another Materials area 209 | -9/Materials | Evolved 2 slots: Propulsion x1, Utility x1 475 | -9/Materials | Core integrity fell below 50% 517 | -9/Materials | Lost 6 parts (1p2n1u2w) 550 | -9/Materials | Core integrity fell below 20% 592 | -9/Materials | Destroyed 8 combat bots 792 | -9/Materials | Destroyed by G-47 Trooper with Particle Gun Last Messages --------------- Scanner. 00593_ K-01 Serf collects debris. 00594_ U-05 Engineer lays Concrete. 00595_ K-01 Serf collects debris. 00596_ U-05 Engineer lays Concrete. 00596_ K-01 Serf collects debris. 00596_ U-05 Engineer builds a Wall. 00597_ R-06 Scavenger collects Hover Unit. 00602_ K-01 Serf cleans the Hadron Collector. 00650_ T-07 Excavator is excavating. 00657_ Y-45 Defender destroyed. 00669_ Acquired Hvy. Particle Cannon. 00681_ Acquired Insulated Plating. 00701_ Acquired 49 matter. 00718_ Acquired 9 matter. 00742_ Connecting with Terminal... 00772_ U-05 Engineer builds a Wall. 00786_ G-34 Mercenary destroyed. 00790_ Aluminum Leg destroyed. Map ----- +----------------------------------------------------+ | ????????????????????????????# # """ #??? | | ????????????????????????????# + ""T"" #??? | | ???????????????????#######??# # """"" #??? | | ???????????????????# """ ?## ####+##########??? | | ???????????????????# "T" # ### ##??#???????? | | ???????????????????# [ # ######?????? | | ???????????????????# """ + ^ | | ???????????????????# """ # """" | | ???????????????????# """ ] # """" *]! | | ???????????????????# ?# """" *] | | ???????????????????# """ ?# *! | | ???????????????????# """ ??# | | ??????????????????# """ ??# """" [[ ### | | ??????????????????## ???# """" [! ""? | | ????????????????????######## """" [! R? | | ????????????????????????#""" ""? | | ????????????????????????#"T #?? | | ????????????????????????#""" """" ?? | | ????????????????????????#### """" #### ######?? | | ???????????????????????????# """" #??? #??????? | | ????????????????????????#### #????#??????? | | ????????????????#########;## #???????????? | | ????????????????# ## """" #???????????? | | ????????????????# "T" [; """" #???????????? | | ????????????????# [%gg """" #???????????? | | ????????????????# r @# #???????????? | | ????????????????# """ """ # / """???????? | | ????????????????# """ """ # # """???????? | | ????????????????# """ """ # # ?????? | | ????????????????# # [[ #########???? | | ????????????????##+######## [ ?? | | ?????????????????# #??????# ?? | | ?????????????????# #??????# ""????? | | ???????????????### ###????# #####+#"### ""????? | | ?????????????### #????# #??????!! ?? "?????? | | ?????????????# # [ ###### #???????! #????????? | | ?????????????# = ] ##??????? #????????? | | ?????????????### [ ### +????????#????????? | | ???????????????# #?# ##?????????????????? | | ???????????????###+###?# #??????????????????? | | ???????????????? ??## ##?????????????????? | | ??????????????""" """ #?# #?????????????????? | | ????????????# """ """ #?# ]] !#?????????????????? | | ????????????# """ """ #?#]]]]!!#?????????????????? | | ????????????# #?########?????????????????? | | ????????????# #??????????????????????????? | | ????????????# [ #??????????????????????????? | | ????????????? #??????????????????????????? | | ????????????##########???????????????????????????? | | | +----------------------------------------------------+ Best States ------------- Heat Dissipation 38 Energy Generation 12 Energy Capacity 265 Matter Stores 300 Matter Capacity 300 Sight Range 18 Terrain Scan Range 16 Terrain Scan Density 10 Evasion (%) 55 Item Schematics ----------------- None Robot Schematics ------------------ None Fabricated ------------ Nothing Repaired ---------- Nothing Alien Tech Used ----------------- None Achievements -------------- None Challenges ------------ None Game ------ Seed DynamicGodMagmablaster Manual? 0 Play Time 00:14:15 Cumulative 453.7 hours Start 2025.05.13 @ 11:24:01 End 2025.05.13 @ 11:35:55 Sessions 1 Manual Loads 0 Difficulty Rogue Special Mode None Game No. 178 Rogue 178 Adventurer 0 Explorer 0 Win Type - Total 0 Types 0/0/0/0/0/0/0/0/0/0 Lore% 16 Gallery% 42 Achievement% 29 Wizard Run 0 Options --------- Layout 1 ASCII 0 Keyboard 1 Movement Numpad Keybinds 0 Fullscreen 1 Font 24/Smallcaps Map View 50x35 Zoom Use 0% Tactical HUD 1 Map Filters NONE Filters NONE Steam 1 RUN: bb4f55d0-6876-4c59-907f-37b5c03df342